[Event "Early-Titled-Tuesday-Blitz-April-23-2024"]
[Site "Chess.com"]
[Date "2024.04.23"]
[Round "3"]
[White "joshdaruca"]
[Black "DrVelja"]
[Result "1-0"]
[WhiteElo "2762"]
[BlackElo "2993"]
[TimeControl "180+1"]
[EndTime "8:30:13 PDT"]
[Termination "joshdaruca won by resignation"]

1. b3 {[%clk 0:03:00.9]} 1... e5 {[%clk 0:02:59.1]} 2. Bb2 {[%clk 0:03:00.2]}
2... Nc6 {[%clk 0:02:59.7]} 3. Nf3 {[%clk 0:02:58.1]} 3... e4 {[%clk 0:02:57.1]}
4. Nd4 {[%clk 0:02:57.4]} 4... Nf6 {[%clk 0:02:54]} 5. c4 {[%clk 0:02:56.8]}
5... Bc5 {[%clk 0:02:40.3]} 6. Nf5 {[%clk 0:02:56.8]} 6... g6 {[%clk 0:02:40.1]}
7. Ng3 {[%clk 0:02:53]} 7... O-O {[%clk 0:02:38.4]} 8. e3 {[%clk 0:02:47.1]}
8... Re8 {[%clk 0:02:35.4]} 9. Nc3 {[%clk 0:02:32.1]} 9... d6 {[%clk 0:02:23.6]}
10. a3 {[%clk 0:02:31.6]} 10... Qe7 {[%clk 0:02:05.6]} 11. Qc2 {[%clk
0:02:23.5]} 11... a5 {[%clk 0:01:57.1]} 12. Nd5 {[%clk 0:02:18.7]} 12... Nxd5
{[%clk 0:01:52.3]} 13. cxd5 {[%clk 0:02:19.6]} 13... Ne5 {[%clk 0:01:38.4]} 14.
Nxe4 {[%clk 0:02:13.8]} 14... Bf5 {[%clk 0:01:36.7]} 15. d3 {[%clk 0:02:14.4]}
15... Bb6 {[%clk 0:01:15.4]} 16. Qc3 {[%clk 0:02:01.7]} 16... f6 {[%clk
0:00:49.1]} 17. Ng3 {[%clk 0:01:23.8]} 17... Bd7 {[%clk 0:00:41.7]} 18. Be2
{[%clk 0:01:21.7]} 18... c6 {[%clk 0:00:41.1]} 19. d4 {[%clk 0:01:13.4]} 19...
Nf7 {[%clk 0:00:40]} 20. h4 {[%clk 0:01:11.1]} 20... cxd5 {[%clk 0:00:39]} 21.
Bf3 {[%clk 0:01:09.7]} 21... Rac8 {[%clk 0:00:35]} 22. Qd3 {[%clk 0:01:06.4]}
22... Be6 {[%clk 0:00:29.2]} 23. Kd2 {[%clk 0:01:02.4]} 23... f5 {[%clk
0:00:28]} 24. Ne2 {[%clk 0:01:02.1]} 24... a4 {[%clk 0:00:21.9]} 25. Nf4 {[%clk
0:00:54.7]} 25... axb3 {[%clk 0:00:21.5]} 26. Qxb3 {[%clk 0:00:52.9]} 26... Ba5+
{[%clk 0:00:21.5]} 27. Ke2 {[%clk 0:00:53.5]} 27... Qd8 {[%clk 0:00:05.8]} 28.
Rac1 {[%clk 0:00:51.6]} 28... Rc6 {[%clk 0:00:05.6]} 29. Nxe6 {[%clk 0:00:50.5]}
29... Rxe6 {[%clk 0:00:05.5]} 30. Bxd5 {[%clk 0:00:51.1]} 30... Rb6 {[%clk
0:00:06.1]} 31. Qa2 {[%clk 0:00:47.9]} 31... Re7 {[%clk 0:00:06.6]} 32. g3
{[%clk 0:00:46.3]} 32... Kf8 {[%clk 0:00:07]} 33. Rc2 {[%clk 0:00:45.3]} 33...
Qd7 {[%clk 0:00:07.6]} 34. Rhc1 {[%clk 0:00:45.4]} 34... Nd8 {[%clk 0:00:08.2]}
35. Bc3 {[%clk 0:00:41.9]} 35... Bxc3 {[%clk 0:00:04.4]} 36. Rxc3 {[%clk
0:00:42.3]} 36... Nc6 {[%clk 0:00:05.3]} 37. Kf1 {[%clk 0:00:39.4]} 37... Qe8
{[%clk 0:00:05.5]} 38. Qc2 {[%clk 0:00:31.6]} 38... Qa8 {[%clk 0:00:05.9]} 39.
Bxc6 {[%clk 0:00:30.4]} 39... bxc6 {[%clk 0:00:04.9]} 40. Rxc6 {[%clk
0:00:31.3]} 40... Rxc6 {[%clk 0:00:04.9]} 41. Qxc6 {[%clk 0:00:32.2]} 41... Qxa3
{[%clk 0:00:05.6]} 42. Rc3 {[%clk 0:00:28.2]} 42... Qb4 {[%clk 0:00:05.6]} 43.
Kg2 {[%clk 0:00:28]} 43... Qb8 {[%clk 0:00:05.1]} 44. Qd5 {[%clk 0:00:27.4]}
44... Qb7 {[%clk 0:00:04.9]} 45. Qxb7 {[%clk 0:00:26.4]} 45... Rxb7 {[%clk
0:00:05.8]} 46. Rc8+ {[%clk 0:00:24.6]} 46... Ke7 {[%clk 0:00:06]} 47. Rh8
{[%clk 0:00:25.1]} 47... Kf6 {[%clk 0:00:06.5]} 48. Kf3 {[%clk 0:00:24.8]} 48...
Re7 {[%clk 0:00:06.7]} 49. Rd8 {[%clk 0:00:24.7]} 49... Re6 {[%clk 0:00:05.7]}
50. Rd7 {[%clk 0:00:25.2]} 50... h5 {[%clk 0:00:03.6]} 51. d5 {[%clk 0:00:22.2]}
51... Re4 {[%clk 0:00:04.1]} 52. Rxd6+ {[%clk 0:00:22.9]} 52... Kf7 {[%clk
0:00:04.9]} 53. Re6 {[%clk 0:00:17.9]} 53... Ra4 {[%clk 0:00:03.3]} 54. e4
{[%clk 0:00:18.5]} 54... fxe4+ {[%clk 0:00:02.9]} 55. Rxe4 {[%clk 0:00:19.4]}
55... Ra3+ {[%clk 0:00:02.4]} 56. Kf4 {[%clk 0:00:19.9]} 56... Rd3 {[%clk
0:00:02.7]} 57. Ke5 {[%clk 0:00:19.5]} 57... Ke7 {[%clk 0:00:03.2]} 58. Rf4
{[%clk 0:00:19.5]} 58... Rd1 {[%clk 0:00:02.9]} 59. d6+ {[%clk 0:00:19.7]} 59...
Rxd6 {[%clk 0:00:01.8]} 60. Rf7+ {[%clk 0:00:20.1]} 60... Kxf7 {[%clk
0:00:02.7]} 61. Kxd6 {[%clk 0:00:20.8]} 61... Kf6 {[%clk 0:00:03.6]} 62. f3
{[%clk 0:00:20.4]} 62... Kf5 {[%clk 0:00:02.2]} 63. Kd5 {[%clk 0:00:20.5]} 63...
Kf6 {[%clk 0:00:03]} 64. g4 {[%clk 0:00:17.8]} 64... hxg4 {[%clk 0:00:02.1]} 65.
fxg4 {[%clk 0:00:18.7]} 65... Kf7 {[%clk 0:00:02.6]} 66. Ke5 {[%clk 0:00:17.7]}
66... g5 {[%clk 0:00:03]} 67. h5 {[%clk 0:00:17.3]} 67... Kg7 {[%clk 0:00:03.5]}
68. Kf5 {[%clk 0:00:18.2]} 68... Kh6 {[%clk 0:00:04.4]} 69. Kf6 {[%clk
0:00:18.9]} 69... Kh7 {[%clk 0:00:05.3]} 70. Kxg5 {[%clk 0:00:19.8]} 70... Kg7
{[%clk 0:00:06.2]} 71. h6+ {[%clk 0:00:19.9]} 71... Kh7 {[%clk 0:00:07.1]} 72.
Kh5 {[%clk 0:00:20.8]} 72... Kg8 {[%clk 0:00:07.3]} 73. g5 {[%clk 0:00:21.7]}
73... Kh8 {[%clk 0:00:08.2]} 74. g6 {[%clk 0:00:22.5]} 74... Kg8 {[%clk
0:00:08.6]} 75. Kg5 {[%clk 0:00:23.2]} 1-0

[Event "Early-Titled-Tuesday-Blitz-April-23-2024"]
[Site "Chess.com"]
[Date "2024.04.23"]
[Round "3"]
[White "Pelusiansky"]
[Black "Mops_2004"]
[Result "0-1"]
[WhiteElo "2541"]
[BlackElo "2891"]
[TimeControl "180+1"]
[EndTime "8:30:13 PDT"]
[Termination "Mops_2004 won by resignation"]

1. Nf3 {[%clk 0:03:00.9]} 1... g6 {[%clk 0:03:00.4]} 2. c4 {[%clk 0:02:59.2]}
2... Bg7 {[%clk 0:03:00.5]} 3. g3 {[%clk 0:02:59.8]} 3... c5 {[%clk 0:02:59.4]}
4. Bg2 {[%clk 0:03:00.3]} 4... Nc6 {[%clk 0:02:59.8]} 5. O-O {[%clk 0:03:00.7]}
5... d6 {[%clk 0:02:59.8]} 6. Nc3 {[%clk 0:03:01.3]} 6... Nh6 {[%clk 0:02:56.1]}
7. e4 {[%clk 0:02:56.8]} 7... Ng4 {[%clk 0:02:48.4]} 8. d3 {[%clk 0:02:52.7]}
8... O-O {[%clk 0:02:47.7]} 9. h3 {[%clk 0:02:45.5]} 9... Nge5 {[%clk
0:02:47.9]} 10. Ne1 {[%clk 0:02:45.6]} 10... Nd4 {[%clk 0:02:46.5]} 11. Be3
{[%clk 0:02:41.7]} 11... Nec6 {[%clk 0:02:44.5]} 12. f4 {[%clk 0:02:37.6]} 12...
e6 {[%clk 0:02:40.9]} 13. Kh2 {[%clk 0:02:37.6]} 13... Rb8 {[%clk 0:02:39.3]}
14. Nc2 {[%clk 0:02:27.5]} 14... b5 {[%clk 0:02:34.2]} 15. cxb5 {[%clk
0:02:11.6]} 15... Nxb5 {[%clk 0:02:33.7]} 16. Qd2 {[%clk 0:02:03.6]} 16... Qa5
{[%clk 0:02:19.7]} 17. e5 {[%clk 0:01:50.7]} 17... Ncd4 {[%clk 0:01:44.9]} 18.
Nxd4 {[%clk 0:01:28.6]} 18... Nxd4 {[%clk 0:01:12]} 19. exd6 {[%clk 0:01:08]}
19... Rd8 {[%clk 0:01:06.6]} 20. Qf2 {[%clk 0:00:54.7]} 20... Rxd6 {[%clk
0:01:03.6]} 21. Rac1 {[%clk 0:00:49.8]} 21... Ba6 {[%clk 0:00:57.2]} 22. Ne4
{[%clk 0:00:41.1]} 22... Rd5 {[%clk 0:00:57.3]} 23. b3 {[%clk 0:00:34.6]} 23...
Bxd3 {[%clk 0:00:55.1]} 24. Rfd1 {[%clk 0:00:35.2]} 24... Bxe4 {[%clk
0:00:51.4]} 25. Bxe4 {[%clk 0:00:36.1]} 25... Rd6 {[%clk 0:00:44.3]} 26. Kh1
{[%clk 0:00:35.1]} 26... h5 {[%clk 0:00:37]} 27. Rc4 {[%clk 0:00:33.7]} 27...
Nf5 {[%clk 0:00:25.5]} 28. Rxd6 {[%clk 0:00:19.3]} 28... Nxd6 {[%clk 0:00:25.4]}
29. Rxc5 {[%clk 0:00:17.8]} 29... Qb4 {[%clk 0:00:15.4]} 30. Bg2 {[%clk
0:00:12.9]} 30... Ne4 {[%clk 0:00:14.5]} 31. Bxe4 {[%clk 0:00:12.9]} 31... Qxe4+
{[%clk 0:00:15.4]} 32. Kh2 {[%clk 0:00:13.6]} 32... Rd8 {[%clk 0:00:15.4]} 33.
Rc1 {[%clk 0:00:11.5]} 33... Rd3 {[%clk 0:00:13.7]} 34. Re1 {[%clk 0:00:10.9]}
34... Qd5 {[%clk 0:00:12.2]} 35. Re2 {[%clk 0:00:09.2]} 35... a5 {[%clk
0:00:11.2]} 36. Rd2 {[%clk 0:00:08.2]} 36... Bc3 {[%clk 0:00:08.7]} 37. Rxd3
{[%clk 0:00:08.4]} 37... Qxd3 {[%clk 0:00:09.6]} 38. a4 {[%clk 0:00:08.2]} 38...
Qd5 {[%clk 0:00:09]} 39. h4 {[%clk 0:00:08.2]} 39... Qxb3 {[%clk 0:00:08.4]} 40.
Bd4 {[%clk 0:00:08.7]} 40... Bxd4 {[%clk 0:00:03.6]} 41. Qxd4 {[%clk 0:00:08.9]}
41... Qb4 {[%clk 0:00:03.1]} 42. Qd8+ {[%clk 0:00:09]} 42... Kg7 {[%clk
0:00:03.1]} 43. Qd7 {[%clk 0:00:09.5]} 43... Qb2+ {[%clk 0:00:02.8]} 44. Kh3
{[%clk 0:00:09.7]} 44... Qb4 {[%clk 0:00:03.7]} 45. Qc6 {[%clk 0:00:08.8]} 45...
Qd2 {[%clk 0:00:03]} 46. Qc7 {[%clk 0:00:06.7]} 46... Qd1 {[%clk 0:00:02.3]} 47.
Qe5+ {[%clk 0:00:05.4]} 47... Kh7 {[%clk 0:00:02.3]} 48. Qe4 {[%clk 0:00:04.3]}
48... Qf1+ {[%clk 0:00:01.7]} 49. Qg2 {[%clk 0:00:04]} 49... Qxg2+ {[%clk
0:00:02.1]} 50. Kxg2 {[%clk 0:00:04.4]} 50... Kg7 {[%clk 0:00:01.9]} 51. Kf3
{[%clk 0:00:05]} 51... Kf6 {[%clk 0:00:01.9]} 52. Ke4 {[%clk 0:00:05.5]} 52...
Ke7 {[%clk 0:00:02.2]} 53. Ke5 {[%clk 0:00:05.2]} 53... f6+ {[%clk 0:00:02.3]}
54. Kd4 {[%clk 0:00:05.7]} 54... Kd6 {[%clk 0:00:03.2]} 55. Kc4 {[%clk
0:00:06.1]} 55... Kc6 {[%clk 0:00:03.5]} 56. Kd4 {[%clk 0:00:06.5]} 56... Kb6
{[%clk 0:00:03.2]} 57. Kc4 {[%clk 0:00:06.9]} 57... Kc6 {[%clk 0:00:02.8]} 58.
Kd4 {[%clk 0:00:07.4]} 58... Kd6 {[%clk 0:00:03.4]} 59. Kc4 {[%clk 0:00:07.6]}
59... e5 {[%clk 0:00:04.1]} 60. Kb5 {[%clk 0:00:08.2]} 60... e4 {[%clk
0:00:03.1]} 61. Kxa5 {[%clk 0:00:07]} 61... e3 {[%clk 0:00:03.4]} 62. Kb6 {[%clk
0:00:07.7]} 62... e2 {[%clk 0:00:04.3]} 63. a5 {[%clk 0:00:08.6]} 63... e1=Q
{[%clk 0:00:05.2]} 64. a6 {[%clk 0:00:09.4]} 64... Qb4+ {[%clk 0:00:05.6]} 0-1

[Event "Early-Titled-Tuesday-Blitz-April-23-2024"]
[Site "Chess.com"]
[Date "2024.04.23"]
[Round "3"]
[White "Aygehovit1992"]
[Black "rasmussvane"]
[Result "1-0"]
[WhiteElo "2749"]
[BlackElo "2961"]
[TimeControl "180+1"]
[EndTime "8:30:14 PDT"]
[Termination "Aygehovit1992 won on time"]

1. e4 {[%clk 0:03:00.9]} 1... c6 {[%clk 0:02:55.1]} 2. d4 {[%clk 0:03:01]} 2...
d5 {[%clk 0:02:56]} 3. e5 {[%clk 0:03:01.4]} 3... Bf5 {[%clk 0:02:54.1]} 4. Nf3
{[%clk 0:03:02.3]} 4... e6 {[%clk 0:02:54]} 5. Be2 {[%clk 0:03:02.4]} 5... Ne7
{[%clk 0:02:53.1]} 6. O-O {[%clk 0:03:02.6]} 6... Ng6 {[%clk 0:02:53.3]} 7. Be3
{[%clk 0:02:52.6]} 7... Nd7 {[%clk 0:02:52.5]} 8. Nbd2 {[%clk 0:02:51.1]} 8...
f6 {[%clk 0:02:45.3]} 9. Ne1 {[%clk 0:02:35]} 9... h5 {[%clk 0:02:43]} 10. f4
{[%clk 0:02:33.5]} 10... Qb6 {[%clk 0:02:32.9]} 11. Bxh5 {[%clk 0:02:12.3]}
11... O-O-O {[%clk 0:02:16.8]} 12. g4 {[%clk 0:02:11.1]} 12... Rxh5 {[%clk
0:02:09]} 13. gxh5 {[%clk 0:02:10.5]} 13... Ne7 {[%clk 0:01:55.3]} 14. Rb1
{[%clk 0:02:06.5]} 14... fxe5 {[%clk 0:01:49.3]} 15. fxe5 {[%clk 0:02:06.3]}
15... Nxe5 {[%clk 0:01:49.9]} 16. Qe2 {[%clk 0:01:34]} 16... Bg4 {[%clk
0:01:49.3]} 17. Qf2 {[%clk 0:01:29.8]} 17... Nf5 {[%clk 0:01:44.2]} 18. Ng2
{[%clk 0:01:23.2]} 18... Nd7 {[%clk 0:00:56.1]} 19. c3 {[%clk 0:01:22.5]} 19...
e5 {[%clk 0:00:51.7]} 20. b4 {[%clk 0:00:59.5]} 20... e4 {[%clk 0:00:45.6]} 21.
Qf4 {[%clk 0:00:44.8]} 21... Bh3 {[%clk 0:00:43.2]} 22. c4 {[%clk 0:00:27.6]}
22... Bd6 {[%clk 0:00:41]} 23. Qf2 {[%clk 0:00:27.7]} 23... Qc7 {[%clk
0:00:28.2]} 24. Bf4 {[%clk 0:00:28]} 24... e3 {[%clk 0:00:16.7]} 25. Nxe3 {[%clk
0:00:24.8]} 25... Nxe3 {[%clk 0:00:16]} 26. Bxd6 {[%clk 0:00:21.9]} 26... Qxd6
{[%clk 0:00:15.3]} 27. Qxe3 {[%clk 0:00:22.1]} 27... Bxf1 {[%clk 0:00:15.5]} 28.
Rxf1 {[%clk 0:00:22.9]} 28... dxc4 {[%clk 0:00:15.5]} 29. Nxc4 {[%clk
0:00:22.5]} 29... Qxb4 {[%clk 0:00:15.4]} 30. Qe6 {[%clk 0:00:16.1]} 30... Kb8
{[%clk 0:00:15.1]} 31. Rf7 {[%clk 0:00:15.3]} 31... Nb6 {[%clk 0:00:13.5]} 32.
Qe5+ {[%clk 0:00:12.8]} 32... Ka8 {[%clk 0:00:11.2]} 33. Ne3 {[%clk 0:00:02.8]}
33... Qb1+ {[%clk 0:00:08.9]} 34. Kg2 {[%clk 0:00:02.9]} 34... Qxa2+ {[%clk
0:00:08.9]} 35. Rf2 {[%clk 0:00:02.6]} 35... Qb3 {[%clk 0:00:08.8]} 36. Nf5
{[%clk 0:00:02.4]} 36... Nd5 {[%clk 0:00:06]} 37. Qxg7 {[%clk 0:00:01.6]} 37...
Qd3 {[%clk 0:00:06.3]} 38. h6 {[%clk 0:00:01.8]} 38... Qe4+ {[%clk 0:00:06.2]}
39. Kg3 {[%clk 0:00:02]} 39... Nc3 {[%clk 0:00:04.6]} 40. h7 {[%clk 0:00:02.1]}
40... a5 {[%clk 0:00:01.9]} 41. h8=Q {[%clk 0:00:02.1]} 41... Rxh8 {[%clk
0:00:02.5]} 42. Qxh8+ {[%clk 0:00:02.9]} 42... Ka7 {[%clk 0:00:03.1]} 43. Qe5
{[%clk 0:00:03.7]} 43... Qd3+ {[%clk 0:00:03.1]} 44. Rf3 {[%clk 0:00:03.8]}
44... Qc2 {[%clk 0:00:02.3]} 45. Qxa5+ {[%clk 0:00:04.1]} 45... Kb8 {[%clk
0:00:02.4]} 46. Qxc3 {[%clk 0:00:04.4]} 46... Qe2 {[%clk 0:00:02]} 47. Qe3
{[%clk 0:00:04]} 47... Qd1 {[%clk 0:00:01.6]} 48. Qf4+ {[%clk 0:00:04.3]} 48...
Ka7 {[%clk 0:00:01.8]} 49. Ra3+ {[%clk 0:00:04.2]} 49... Kb6 {[%clk 0:00:02.3]}
50. Re3 {[%clk 0:00:03.7]} 50... Qg1+ {[%clk 0:00:01.9]} 51. Kh4 {[%clk
0:00:03.9]} 51... Qg6 {[%clk 0:00:01.5]} 52. Qg5 {[%clk 0:00:03.5]} 52... Qh7+
{[%clk 0:00:01.7]} 53. Kg3 {[%clk 0:00:03.6]} 53... Qd7 {[%clk 0:00:02.6]} 54.
Qf4 {[%clk 0:00:03.7]} 54... Qd5 {[%clk 0:00:02.9]} 55. h4 {[%clk 0:00:03.9]}
55... Qg8+ {[%clk 0:00:03.3]} 56. Qg5 {[%clk 0:00:03.9]} 56... Qb8+ {[%clk
0:00:03.9]} 57. Re5 {[%clk 0:00:03]} 57... Qf8 {[%clk 0:00:04]} 58. h5 {[%clk
0:00:03]} 58... Qa3+ {[%clk 0:00:04.2]} 59. Qe3 {[%clk 0:00:03.3]} 59... Qa1
{[%clk 0:00:05.1]} 60. d5+ {[%clk 0:00:03.3]} 60... c5 {[%clk 0:00:04.8]} 61. d6
{[%clk 0:00:03.9]} 61... Ka6 {[%clk 0:00:03.8]} 62. d7 {[%clk 0:00:04.2]} 62...
Qd1 {[%clk 0:00:03.6]} 63. Re6+ {[%clk 0:00:03.9]} 63... b6 {[%clk 0:00:03.4]}
64. Rd6 {[%clk 0:00:04.7]} 64... Qxh5 {[%clk 0:00:03.2]} 65. d8=Q {[%clk
0:00:04.6]} 1-0

[Event "Early-Titled-Tuesday-Blitz-April-23-2024"]
[Site "Chess.com"]
[Date "2024.04.23"]
[Round "3"]
[White "Bada_norovsambuu"]
[Black "ChainedDowntohell"]
[Result "0-1"]
[WhiteElo "2228"]
[BlackElo "2578"]
[TimeControl "180+1"]
[EndTime "8:30:15 PDT"]
[Termination "ChainedDowntohell won by resignation"]

1. Nf3 {[%clk 0:03:00.9]} 1... Nf6 {[%clk 0:02:58.1]} 2. d4 {[%clk 0:03:00.3]}
2... g6 {[%clk 0:02:57.6]} 3. c4 {[%clk 0:03:00.4]} 3... Bg7 {[%clk 0:02:57.3]}
4. g3 {[%clk 0:03:00.5]} 4... O-O {[%clk 0:02:53.2]} 5. Bg2 {[%clk 0:03:01.4]}
5... d6 {[%clk 0:02:53.2]} 6. O-O {[%clk 0:03:01.3]} 6... Ne4 {[%clk 0:02:53.7]}
7. Nc3 {[%clk 0:02:58.7]} 7... Nxc3 {[%clk 0:02:52.9]} 8. bxc3 {[%clk
0:02:58.4]} 8... Nc6 {[%clk 0:02:52.7]} 9. e4 {[%clk 0:02:57.9]} 9... e5 {[%clk
0:02:52.3]} 10. Bg5 {[%clk 0:02:55.6]} 10... f6 {[%clk 0:02:51.7]} 11. Be3
{[%clk 0:02:54.6]} 11... Bg4 {[%clk 0:02:43.7]} 12. Qd2 {[%clk 0:02:53.1]} 12...
Na5 {[%clk 0:02:36.3]} 13. Qd3 {[%clk 0:02:30.1]} 13... b6 {[%clk 0:02:32.9]}
14. h3 {[%clk 0:02:14.2]} 14... Be6 {[%clk 0:02:30.7]} 15. d5 {[%clk 0:02:13.5]}
15... Bc8 {[%clk 0:02:30.1]} 16. Nd2 {[%clk 0:02:11.3]} 16... Ba6 {[%clk
0:02:28.2]} 17. Rfd1 {[%clk 0:02:09.1]} 17... Qd7 {[%clk 0:02:26.8]} 18. Kh2
{[%clk 0:02:02.9]} 18... Qa4 {[%clk 0:02:26.5]} 19. Bf1 {[%clk 0:02:01.9]} 19...
f5 {[%clk 0:02:25.3]} 20. Be2 {[%clk 0:02:00.6]} 20... f4 {[%clk 0:02:19.9]} 21.
gxf4 {[%clk 0:01:59.1]} 21... exf4 {[%clk 0:02:19.4]} 22. Bd4 {[%clk 0:01:58.9]}
22... Rae8 {[%clk 0:02:17.2]} 23. f3 {[%clk 0:01:58.3]} 23... Nb7 {[%clk
0:02:05.8]} 24. Rg1 {[%clk 0:01:55.4]} 24... Nc5 {[%clk 0:02:02.8]} 25. Qb1
{[%clk 0:01:46]} 25... Nb7 {[%clk 0:01:40.5]} 26. Rg2 {[%clk 0:01:45]} 26... Re7
{[%clk 0:01:36.4]} 27. Qb4 {[%clk 0:01:44.6]} 27... Qe8 {[%clk 0:01:34.6]} 28.
Qa3 {[%clk 0:01:42.6]} 28... Na5 {[%clk 0:01:34.3]} 29. Nb3 {[%clk 0:01:39.6]}
29... Bxc4 {[%clk 0:01:22.5]} 30. Bxc4 {[%clk 0:01:39.2]} 30... Nxc4 {[%clk
0:01:23.4]} 31. Qxa7 {[%clk 0:01:38.8]} 31... c5 {[%clk 0:01:14.5]} 32. Qa6
{[%clk 0:01:38.4]} 32... cxd4 {[%clk 0:01:09.4]} 33. Qxc4 {[%clk 0:01:38.3]}
33... dxc3 {[%clk 0:01:09.6]} 34. Nd4 {[%clk 0:01:37.4]} 34... Qc8 {[%clk
0:00:43]} 35. Nc6 {[%clk 0:01:30.4]} 35... Ref7 {[%clk 0:00:35.6]} 36. Rb1
{[%clk 0:01:28.7]} 36... Rb7 {[%clk 0:00:26.7]} 37. Qb4 {[%clk 0:01:27.7]} 37...
Qd7 {[%clk 0:00:23]} 38. Qb5 {[%clk 0:01:19.7]} 38... Kh8 {[%clk 0:00:22.7]} 39.
a4 {[%clk 0:01:19.6]} 39... Rc7 {[%clk 0:00:14.5]} 40. Qxb6 {[%clk 0:01:18.5]}
40... Rfc8 {[%clk 0:00:15.1]} 41. a5 {[%clk 0:01:14.8]} 41... Rxc6 {[%clk
0:00:15]} 42. dxc6 {[%clk 0:01:13.9]} 42... Rxc6 {[%clk 0:00:15.9]} 43. Qb8+
{[%clk 0:01:13.4]} 43... Rc8 {[%clk 0:00:16.4]} 44. Qb3 {[%clk 0:01:07.8]} 44...
Be5 {[%clk 0:00:11.6]} 45. a6 {[%clk 0:01:07.1]} 45... Ra8 {[%clk 0:00:03.2]}
46. Qb7 {[%clk 0:01:07]} 46... Qe8 {[%clk 0:00:02.6]} 47. a7 {[%clk 0:01:03.5]}
47... d5 {[%clk 0:00:03]} 48. Qxd5 {[%clk 0:00:55.3]} 48... Rd8 {[%clk 0:00:03]}
49. Rb8 {[%clk 0:00:35.5]} 49... Rxb8 {[%clk 0:00:02.4]} 50. axb8=Q {[%clk
0:00:35.5]} 50... Qxb8 {[%clk 0:00:03.3]} 51. Qd3 {[%clk 0:00:29.9]} 51... Kg7
{[%clk 0:00:03.5]} 52. Ra2 {[%clk 0:00:28.9]} 52... Kh6 {[%clk 0:00:03.6]} 53.
Qe2 {[%clk 0:00:26.7]} 53... Qb3 {[%clk 0:00:03]} 54. Qf2 {[%clk 0:00:26.3]}
54... Kg7 {[%clk 0:00:01.7]} 55. Ra7+ {[%clk 0:00:24.8]} 55... Kg8 {[%clk
0:00:01.7]} 56. Ra8+ {[%clk 0:00:22.8]} 56... Kg7 {[%clk 0:00:02.2]} 57. Ra7+
{[%clk 0:00:18.3]} 57... Kg8 {[%clk 0:00:02]} 58. Ra2 {[%clk 0:00:15.3]} 58...
Qb4 {[%clk 0:00:01.5]} 59. Ra8+ {[%clk 0:00:13.9]} 59... Kg7 {[%clk 0:00:01.5]}
60. Qa2 {[%clk 0:00:13.1]} 60... Kh6 {[%clk 0:00:01.6]} 61. Qf2 {[%clk
0:00:11.4]} 61... Qb2 {[%clk 0:00:01.5]} 62. Qxb2 {[%clk 0:00:09.5]} 62... cxb2
{[%clk 0:00:02.4]} 63. h4 {[%clk 0:00:04.1]} 63... b1=Q {[%clk 0:00:02]} 64. Kh3
{[%clk 0:00:04.3]} 64... Qc2 {[%clk 0:00:02.5]} 0-1